Cogmind - Beta 13 @@@ ROGUE MODE // 2024.06.27 @ 12:35:26 Player: Jazzer Result: Destroyed by Explosive Trap Performance ------------- Evolutions (0) 0 Regions Visited (1) 200 Robots Destroyed (13) 65 Value Destroyed (278) 278 Prototype IDs (0) 0 Alien Tech Used (0) 0 Bonus (0) 0 TOTAL SCORE: 543 Bonus ------- None Cogmind --------- Core Integrity 0/250 Matter 290/300 Energy 100/100 System Corruption 0% Temperature Cool (0) Movement Rolling (90) Location -10/Materials Parts ------- > --- POWER (1) -------- (None) > --- PROPULSION (2) --- Wheel Compact Wheel > --- UTILITY (2) ------ Improved Heat Sink Large Storage Unit > --- WEAPON (2) ------- Beam Cannon Assault Rifle > --- INVENTORY (15) --- Ion Engine Light Treads Light Treads Small Storage Unit Improved Terrain Scanner Small Laser Small Laser Beam Cannon Grenade Launcher Peak State ------------ > --- POWER ------------ Light Ion Engine > --- PROPULSION ------- Wheel Wheel > --- UTILITY ---------- Improved Heat Sink Large Storage Unit > --- WEAPON ----------- Beam Cannon Assault Rifle > --- INVENTORY -------- Ion Engine Light Treads Light Treads Small Storage Unit Improved Terrain Scanner Small Laser Small Laser Grenade Launcher [Rating: 10] Favorites ----------- Power Light Ion Engine Engine Light Ion Engine Propulsion Wheel Leg Aluminum Leg Wheel Wheel Utility Small Storage Unit Device Improved Terrain Scanner Storage Small Storage Unit Weapon Assault Rifle Energy Gun Small Laser Energy Cannon Beam Cannon Ballistic Gun Assault Rifle Build | -11 -10 ------- Run | Yrd Mat Slots Evolved . | . . Power . | . . Propulsion . | . . Utility . | . . Weapon . | . . Parts Attached 7 | 3 4 Power . | . . Engine . | . . Core . | . . Reactor . | . . Propulsion 3 | 2 1 Treads . | . . Leg . | . . Wheel 3 | 2 1 Hover . | . . Flight . | . . Utility 3 | 1 2 Device 2 | 1 1 Storage 1 | . 1 Processor . | . . Hackware . | . . Protection . | . . Artifact . | . . Weapon 1 | . 1 Energy Gun . | . . Energy Cannon 1 | . 1 Ballistic Gun . | . . Ballistic Cannon . | . . Launcher . | . . Special Weapon . | . . Impact Weapon . | . . Slashing Weapon . | . . Piercing Weapon . | . . Special Melee Weapon . | . . Unidentified Prototypes . | . . Parts Lost 2 | . 2 Power 1 | . 1 Propulsion 1 | . 1 Utility . | . . Weapon . | . . Highest Loss Streak 1 | . 1 To Critical Strikes . | . . Average Slot Usage (%) 99 | . 99 Engine 14 | . 14 Wheel 27 | . 27 Device 14 | . 14 Storage 14 | . 14 Energy Gun 4 | . 4 Energy Cannon 9 | . 9 Ballistic Gun 14 | . 14 Naked Turns . | . . Heaviest Build 29 | 12 29 Greatest Support 26 | 20 26 Greatest Overweight (x) 2 | . 2 Average Overweight (x) . | . . Largest Inventory Capacity 15 | 8 15 Average Capacity 10 | 8 10 Most Carried 9 | 6 9 Average Carried 6 | 6 6 Final Capacity 15 | 8 15 Final Carried 9 | 6 9 Class Distribution -------------------- 100% | Mutant Dominant Class ---------------- Mutant | -10/Materials Resources | -11 -10 ----------- Run | Yrd Mat Matter Collected 358 | 236 122 Remotely . | . . Salvage Created 422 | 76 346 Parts 26 | 4 22 Haulers Intercepted . | . . Recyclers Shooed . | . . Parts Field Recycled . | . . Retrieved Matter . | . . Parts Self-Destructed . | . . Prevented . | . . Kills | -11 -10 ------- Run | Yrd Mat Combat Hostiles Destroyed 9 | . 9 Guns 1 | . 1 Cannons 8 | . 8 Classes Destroyed 5 | 2 3 Tunneler 1 | 1 . Recycler 2 | 1 1 Watcher 1 | . 1 Swarmer 4 | . 4 Grunt 5 | . 5 Best Kill Streak 5 | 2 5 Combat Bots Only 4 | . 4 Max Kills in Single Turn 2 | 1 2 Gunslinging . | . . Exploded . | . . Melee . | . . Uniques/NPCs Destroyed . | . . Combat | -11 -10 -------- Run | Yrd Mat Hostile Shots Fired 52 | . 52 Missed 16 | . 16 Damage Taken 489 | . 489 Core 250 | . 250 Absorbed by Shields . | . . Core Remaining (%) 100 | 100 . Volleys Fired 36 | 2 34 Largest 2 | 2 2 Hottest 80 | 60 80 Shots Fired 72 | 4 68 Gun 39 | 4 35 Cannon 33 | . 33 Launcher . | . . Special . | . . Kinetic 36 | 2 34 Thermal 36 | 2 34 Explosive . | . . Electromagnetic . | . . Robot Hit Streak 5 | 2 5 Robot Miss Streak 5 | 1 5 Penetration Max . | . . Secondary Targets . | . . Shots Hit Robots 38 | 3 35 Core Hits 18 | 3 15 Critical Kills . | . . Critical Parts Destroyed . | . . Critical Strikes . | . . Melee Attacks . | . . Impact . | . . Slashing . | . . Piercing . | . . Sneak Attacks . | . . Combat Hostiles . | . . Follow-up Attacks . | . . Damage Inflicted 655 | 37 618 Guns 219 | 37 182 Cannons 382 | . 382 Explosions 54 | . 54 Melee . | . . Ramming . | . . Kinetic 207 | 25 182 Thermal 448 | 12 436 Explosive . | . . Electromagnetic . | . . Impact . | . . Slashing . | . . Piercing . | . . Highest Corruption . | . . Average Corruption . | . . Corruption Purged . | . . Corruption Blocked . | . . Overload Shots . | . . Overflow Damage 108 | . 108 Projectiles 7 | . 7 Explosions 101 | . 101 Melee . | . . Knockbacks . | . . Impact . | . . Kinetic . | . . Secondary . | . . Self-Inflicted Damage 113 | . 113 Shots 1 | . 1 Rammed . | . . Targets Rammed . | . . Kicked . | . . Crushed . | . . Highest Temperature 123 | . 123 Average Temperature 43 | . 43 Received Heat Transfer 105 | . 105 Siege Activations . | . . Robots Corrupted . | . . Combat Hostiles . | . . Parts Fried . | . . Impact Corruptions . | . . Robots Melted . | . . Combat Hostiles . | . . Parts Melted 3 | . 3 Heat Transferred 889 | 25 864 Parts Sabotaged . | . . Parts Stolen . | . . Parts Stripped . | . . Power Chain Reactions . | . . Alert | -11 -10 ------- Run | Yrd Mat Peak Influence 365 | 10 365 Initial 6 | . 6 Average 100 | 7 110 Maximum Alert Level 1 | . 1 Low Security (%) 86 | 100 84 Level 1 13 | . 15 Level 2 . | . . Level 3 . | . . Level 4 . | . . Level 5 . | . . High Security . | . . Max Security . | . . Squads Dispatched 1 | . 1 Investigation 1 | . 1 Extermination . | . . Reinforcement . | . . Assault . | . . Garrison . | . . Intercept . | . . Searches Triggered . | . . Construction Impeded . | . . Haulers Reinforced . | . . Active Scanning Responses . | . . Cargo Convoy Interrupts . | . . Stealth | -11 -10 --------- Run | Yrd Mat Distress Signals 1 | . 1 Communications Jammed . | . . Distress Signals . | . . Times Spotted 18 | . 18 Peak Tracking Total 4 | . 4 Tactical Retreats 1 | . 1 Traps | -11 -10 ------- Run | Yrd Mat Traps Triggered 2 | . 2 Indirectly . | . . Trap Hack Attempts . | . . Triggered . | . . Disarmed . | . . Reprogrammed . | . . Reused . | . . Traps Extracted . | . . Installed . | . . Triggered . | . . Machines | -11 -10 ---------- Run | Yrd Mat Machines Disabled 2 | . 2 Max in Single Turn 2 | . 2 Machines Repaired . | . . Machines Dismantled . | . . Machines Sabotaged . | . . Overloaded Fab Kills . | . . Hacking | -11 -10 --------- Run | Yrd Mat Machines Accessed 2 | . 2 Terminals 2 | . 2 Fabricators . | . . Repair Stations . | . . Recycling Units . | . . Scanalyzers . | . . Garrison Access . | . . Total Hacks 5 | . 5 Successful 3 | . 3 Failed 2 | . 2 Catastrophic . | . . Database Lockouts . | . . Manual 2 | . 2 Terminals 5 | . 5 Fabricators . | . . Repair Stations . | . . Recycling Units . | . . Scanalyzers . | . . Garrison Access . | . . Terminal Hacks 1 | . 1 Locate Traps 1 | . 1 Fabricator Hacks . | . . Repair Station Hacks . | . . Recycling Unit Hacks . | . . Scanalyzer . | . . Garrison Access Hacks . | . . Unauthorized Hacks 2 | . 2 Terminals 2 | . 2 Botnet 2 | . 2 Fabricators . | . . Repair Stations . | . . Recycling Units . | . . Scanalyzers . | . . Garrison Access . | . . Data Cores Recovered . | . . Used . | . . Hacking Detections 2 | . 2 Full Trace Events . | . . Feedback Events . | . . Feedback Blocked . | . . Robot Schematics Acquired . | . . Robots Built . | . . Authchips . | . . Time . | . . Total Robot Build Rating . | . . Part Schematics Acquired . | . . Parts Built . | . . Authchips . | . . Time . | . . Total Part Build Rating . | . . Parts Repaired . | . . Time . | . . Parts Recycled . | . . Recycled Matter . | . . Retrieved Matter . | . . Retrieved Components . | . . Parts Scanalyzed . | . . Part Schematics Acquired . | . . Parts Damaged . | . . Bothacking | -11 -10 ------------ Run | Yrd Mat Used RIF Installer . | . . Robots Hacked . | . . Non-combat . | . . Combat . | . . Robot Hacks Applied . | . . Relay Couplers Released . | . . Fabnet Peak Effective % . | . . Robots Rewired . | . . Allies Hacked . | . . Hacks Repelled . | . . Allies | -11 -10 -------- Run | Yrd Mat Total Allies . | . . Largest Group . | . . Highest-Rated Group . | . . Highest-Rated Ally . | . . Total Orders . | . . Ally Attacks . | . . Total Damage . | . . Kills . | . . Allies Corrupted . | . . Allies Melted . | . . Intel | -11 -10 ------- Run | Yrd Mat Robot Analysis Total . | . . Derelict Logs Recovered . | . . Drone Launches . | . . Drone Recoveries . | . . Exploration | -11 -10 ------------- Run | Yrd Mat Turns Passed 394 | 39 355 Spaces Moved 294 | 26 268 Core . | . . Treads . | . . Legs . | . . Wheels 294 | 26 268 Hover . | . . Flight . | . . Fastest Speed 80 | 80 80 Average Speed 83 | 80 84 Slowest Speed 110 | 80 110 Overloaded Moves . | . . Propulsion Burnouts . | . . Robots Hopped . | . . Cave-ins Triggered . | . . Exploration Rate (%) 27 | 3 51 Regions Visited 1 Branch Regions . Pre-discovered Areas . | . . Known Exits Taken . | . . Unknown Exits Taken 1 | 1 . Scrap Searched . | . . Spaces Dug . | . . Terrain Destroyed 19 | . 19 Melee . | . . Projectile . | . . AOE 19 | . 19 Terrain Rammed . | . . Walls Destroyed . | . . Machines Disabled . | . . Actions | -11 -10 --------- Run | Yrd Mat Total 367 | 38 329 Wait 25 | 8 17 Move 293 | 25 268 Hop . | . . Pick Up 4 | . 4 Fast Attach 2 | 1 1 Attach . | . . Detach . | . . Swap 5 | 2 3 Drop 2 | . 2 Fire 36 | 2 34 Melee . | . . Ram . | . . Kick . | . . Crush . | . . Escape Stasis . | . . Rewire . | . . Trap . | . . Miscellaneous . | . . Route ------- -11/Scrapyard -10/Materials (discovered 1 exit: [*Mat]) History --------- Turn | Location | Event 4 | -11/Scrapyard | Discovered new exit (range 3) 40 | -11/Scrapyard | Entered Materials 118 | -10/Materials | Discovered new exit (range 5) 311 | -10/Materials | Build established: Mutant 350 | -10/Materials | Core integrity fell below 50% 383 | -10/Materials | Core integrity fell below 20% 395 | -10/Materials | Destroyed by Explosive Trap Last Messages --------------- 00349_ Fusion Modulator explodes. 00349_ Wheel destroyed. 00349_ Destroyed Wheel. 00349_ Terminal disabled. 00349_ R-06 Scavenger destroyed. 00349_ S-10 Pest destroyed. 00353_ Acquired 16 matter. 00355_ Acquired Com. Wheel. 00357_ Acquired 10 matter. 00367_ U-05 Engineer builds a Wall. 00374_ W-16 Scout sends out distress signal. 00375_ U-05 Engineer lays Concrete. 00377_ U-05 Engineer builds a Wall. 00384_ Destroyed Flight Unit. 00387_ S-10 Pest destroyed. 00387_ W-16 Scout destroyed. 00391_ U-05 Engineer builds a Wall. 00395_ Triggered Explosive Trap. 00395_ An explosion rips through the floor. 00395_ Lgt. Ion Engine destroyed. Map ----- +----------------------------------------------------+ | | | | | | | | | | | | | | | | | | | | | | | ?????????????????????????????????????????????????? | | #????????????????????????????????????????????????? | | #????????????????????????????????????????????????? | | #????????????????????????????????????????????????? | | #####################????????????????????????????? | | + #????????????????????????????? | | ##### ### ! ########?????????????????????? | | #???# ##" # #?????????????????????? | | # #???# ##" = # #?????????????????????? | | # #???# ##" # """ #?????????????????????? | | #+##### # " # """ #?????????????????????? | | # # " # """ #?????????????????????? | | """* # # " [ #? ??????????????????????? | | """% # ######;;;;;;####+########## #??????????? | | """[ # u%= @^ #??????????? | | + * ^ #??????????? | | """ # =%= #??????????? | | """ ### ########### #??????????? | | """=%#?# ???#??????# ^ #??????????? | | #?#?? ????????# ^ ??????????? | | #####%#?????????????+ ??????????? | | ????# #?????????????#%* ^ ??????????? | | ???## #?????????????# ##############???????????? | | ????# ##?????????#??# r#????????????????????????? | | ????# #???????#????? [ ????????????????????????? | | ??#?# #?????????#???=%! ?^??????????????????????? | | ????# #?? ?????????#=*T ^???????????????????????? | | ????# #????????????# ^?^?????????????????????? | | ????# #????????????# ^??????????????????????? | | ????# #????????????### ??????????????????????? | | ?#??# #???????????#??? ^??????????????????????? | | ????# #???????????????? ???????????????????????? | | ????# #??????????????????????????????????????????? | | #???# #??????????????????????????????????????????? | | ????# #??????? ??? ? ??? ????????????????????????? | | ????# #??????????? ????? ????????????????????????? | | ????# #???? ???????????? ????????????????????????? | | ????# #????????????????# ????????????????????????? | | ????# #????????????????# ?????? ?????????????????? | +----------------------------------------------------+ Best States ------------- Heat Dissipation 39 Energy Generation 10 Energy Capacity 125 Matter Stores 300 Matter Capacity 300 Sight Range 16 Terrain Scan Range 16 Terrain Scan Density 10 Evasion (%) 44 Item Schematics ----------------- None Robot Schematics ------------------ None Fabricated ------------ Nothing Alien Tech Used ----------------- None Achievements -------------- None Challenges ------------ None Game ------ Seed AntigravImprovedMonowheel Manual? 0 Play Time 00:08:26 Cumulative 280.7 hours Start 2024.06.27 @ 12:16:46 End 2024.06.27 @ 12:35:26 Sessions 1 Manual Loads 0 Difficulty Rogue Special Mode None Game No. 159 Rogue 159 Adventurer 0 Explorer 0 Win Type - Total 2 Types 2/0/0/0/0/0/0/0/0 Lore% 49 Gallery% 59 Achievement% 34 Wizard Run 0 Options --------- Layout 0 ASCII 0 Keyboard 1 Movement Numpad Keybinds 0 Fullscreen 2 Font 18/SmallcapsGlow Map View 76x50 Zoom Use 0% Tactical HUD 1 Map Filters NONE Filters NONE Steam 1 RUN: b5c25aeb-7d1f-4be8-8647-11717069d932